[Event "*** SCC Grand Prix: Titled Tuesday Blitz"]
[Site "Chess.com"]
[Date "2020.07.07"]
[Round "3"]
[White "timator"]
[Black "BogdanDeac"]
[Result "1/2-1/2"]
[WhiteElo "2633"]
[BlackElo "2821"]
[TimeControl "180+1"]
[EndTime "10:30:24 PDT"]
[Termination "Game drawn by agreement"]

1. d4 {[%clk 0:03:00.9]} 1... d5 {[%clk 0:02:58.9]} 2. Nf3 {[%clk 0:03:00.9]}
2... Nf6 {[%clk 0:02:58.4]} 3. c4 {[%clk 0:02:57.1]} 3... e6 {[%clk 0:02:55.2]}
4. Nc3 {[%clk 0:02:48.4]} 4... c6 {[%clk 0:02:54.3]} 5. e3 {[%clk 0:02:44.5]}
5... Nbd7 {[%clk 0:02:54]} 6. Bd3 {[%clk 0:02:44.7]} 6... dxc4 {[%clk
0:02:53.1]} 7. Bxc4 {[%clk 0:02:44.8]} 7... b5 {[%clk 0:02:53.7]} 8. Bd3 {[%clk
0:02:45.3]} 8... Bb7 {[%clk 0:02:53.5]} 9. O-O {[%clk 0:02:45.8]} 9... a6 {[%clk
0:02:53.1]} 10. a4 {[%clk 0:02:46.1]} 10... b4 {[%clk 0:02:33.8]} 11. Ne4 {[%clk
0:02:43.4]} 11... c5 {[%clk 0:02:33.9]} 12. Nxc5 {[%clk 0:02:29.5]} 12... Bxc5
{[%clk 0:02:27.4]} 13. dxc5 {[%clk 0:02:30.4]} 13... Nxc5 {[%clk 0:02:27.6]} 14.
Bc4 {[%clk 0:02:23.3]} 14... Qxd1 {[%clk 0:02:24.1]} 15. Rxd1 {[%clk 0:02:22.6]}
15... a5 {[%clk 0:02:24.2]} 16. Nd4 {[%clk 0:02:04.8]} 16... Ke7 {[%clk
0:02:16.4]} 17. b3 {[%clk 0:02:02.1]} 17... Bd5 {[%clk 0:01:54.5]} 18. Bxd5
{[%clk 0:01:53.7]} 18... Nxd5 {[%clk 0:01:53.3]} 19. Bb2 {[%clk 0:01:54]} 19...
Rhc8 {[%clk 0:01:28.5]} 20. Rac1 {[%clk 0:01:52.7]} 20... Ne4 {[%clk 0:01:10.6]}
21. Kf1 {[%clk 0:01:14.6]} 21... Ndc3 {[%clk 0:00:48.8]} 22. Bxc3 {[%clk
0:01:12.5]} 22... Nxc3 {[%clk 0:00:46.8]} 23. Rd2 {[%clk 0:01:12.4]} 23... e5
{[%clk 0:00:21.1]} 24. Nf5+ {[%clk 0:00:53.5]} 24... Kf6 {[%clk 0:00:20.8]} 25.
Nd6 {[%clk 0:00:53.3]} 25... Rd8 {[%clk 0:00:20.6]} 26. Ke1 {[%clk 0:00:53.9]}
26... Ke6 {[%clk 0:00:17]} 27. Nc4 {[%clk 0:00:49.6]} 27... Rxd2 {[%clk
0:00:16.7]} 28. Nxd2 {[%clk 0:00:50.5]} 28... f5 {[%clk 0:00:11.3]} 29. Nc4
{[%clk 0:00:45.8]} 29... Ne4 {[%clk 0:00:10.7]} 30. Ke2 {[%clk 0:00:40.6]} 30...
Nc3+ {[%clk 0:00:06.8]} 31. Ke1 {[%clk 0:00:40.9]} 31... Ra6 {[%clk 0:00:06.3]}
32. Rc2 {[%clk 0:00:39.4]} 32... e4 {[%clk 0:00:05.9]} 33. Rd2 {[%clk 0:00:36]}
33... Nd5 {[%clk 0:00:05.2]} 34. Rd4 {[%clk 0:00:34]} 34... g6 {[%clk
0:00:04.7]} 35. Kd2 {[%clk 0:00:30.8]} 35... h5 {[%clk 0:00:04.4]} 36. f3 {[%clk
0:00:31]} 36... Nc3 {[%clk 0:00:03.8]} 37. Rd8 {[%clk 0:00:27]} 37... exf3
{[%clk 0:00:03.6]} 38. gxf3 {[%clk 0:00:26.8]} 38... Ra7 {[%clk 0:00:04]} 39.
Kd3 {[%clk 0:00:25.7]} 39... Na2 {[%clk 0:00:03.4]} 40. e4 {[%clk 0:00:24.9]}
40... fxe4+ {[%clk 0:00:03.2]} 41. fxe4 {[%clk 0:00:25.8]} 41... Nc3 {[%clk
0:00:03.4]} 42. Rd6+ {[%clk 0:00:23.9]} 42... Kf7 {[%clk 0:00:02.9]} 43. Ne5+
{[%clk 0:00:22.9]} 43... Ke7 {[%clk 0:00:03.1]} 44. Rxg6 {[%clk 0:00:23.1]}
44... Ra8 {[%clk 0:00:03.6]} 45. Nc6+ {[%clk 0:00:21.5]} 45... Kf7 {[%clk
0:00:04]} 46. Rd6 {[%clk 0:00:18.6]} 46... Kg7 {[%clk 0:00:03.8]} 47. e5 {[%clk
0:00:17.2]} 47... Rc8 {[%clk 0:00:03.8]} 48. e6 {[%clk 0:00:16.4]} 48... Nd5
{[%clk 0:00:04.2]} 49. Rxd5 {[%clk 0:00:16.1]} 49... Rxc6 {[%clk 0:00:04]} 50.
e7 {[%clk 0:00:16.2]} 50... Kf7 {[%clk 0:00:03.7]} 51. Rxa5 {[%clk 0:00:14.9]}
51... Rc3+ {[%clk 0:00:03.2]} 52. Kd4 {[%clk 0:00:15.4]} 52... Rxb3 {[%clk
0:00:04.1]} 53. Rxh5 {[%clk 0:00:15.5]} 53... Kxe7 {[%clk 0:00:04.1]} 54. Kc4
{[%clk 0:00:15.5]} 54... Rb2 {[%clk 0:00:04.2]} 55. a5 {[%clk 0:00:12.9]} 55...
b3 {[%clk 0:00:04.5]} 56. Kc3 {[%clk 0:00:12.4]} 56... Rb1 {[%clk 0:00:04.4]}
57. a6 {[%clk 0:00:12.1]} 57... b2 {[%clk 0:00:04.5]} 58. Kc2 {[%clk 0:00:08.8]}
58... Ra1 {[%clk 0:00:04.4]} 59. Kxb2 {[%clk 0:00:09.3]} 59... Rxa6 {[%clk
0:00:04]} 60. Rf5 {[%clk 0:00:09.7]} 60... Rh6 {[%clk 0:00:03.4]} 61. Rf2 {[%clk
0:00:09.5]} 61... Rf6 {[%clk 0:00:03.6]} 62. Rg2 {[%clk 0:00:09.6]} 62... Kf7
{[%clk 0:00:03.8]} 63. Kc3 {[%clk 0:00:08.6]} 63... Rg6 {[%clk 0:00:04.7]} 64.
Rxg6 {[%clk 0:00:08.4]} 64... Kxg6 {[%clk 0:00:04.8]} 1/2-1/2

[Event "*** SCC Grand Prix: Titled Tuesday Blitz"]
[Site "Chess.com"]
[Date "2020.07.07"]
[Round "3"]
[White "Chuchofrio1"]
[Black "valeriocarnicelli"]
[Result "1/2-1/2"]
[WhiteElo "2231"]
[BlackElo "2487"]
[TimeControl "180+1"]
[EndTime "10:30:25 PDT"]
[Termination "Game drawn - insufficient material"]

1. e4 {[%clk 0:03:00.9]} 1... e5 {[%clk 0:02:59.7]} 2. Nf3 {[%clk 0:03:00.4]}
2... Nc6 {[%clk 0:02:59.4]} 3. Bb5 {[%clk 0:02:59.7]} 3... f5 {[%clk 0:02:59]}
4. d3 {[%clk 0:02:46.6]} 4... fxe4 {[%clk 0:02:58.8]} 5. dxe4 {[%clk 0:02:46.8]}
5... Nf6 {[%clk 0:02:58.1]} 6. O-O {[%clk 0:02:46.1]} 6... Bc5 {[%clk
0:02:57.7]} 7. Bg5 {[%clk 0:02:44]} 7... d6 {[%clk 0:02:55.7]} 8. Nc3 {[%clk
0:02:41.1]} 8... O-O {[%clk 0:02:55.7]} 9. Nd5 {[%clk 0:02:41.3]} 9... Kh8
{[%clk 0:02:56]} 10. c3 {[%clk 0:02:39.3]} 10... Bg4 {[%clk 0:02:55.5]} 11. h3
{[%clk 0:02:38]} 11... Bxf3 {[%clk 0:02:55.4]} 12. Qxf3 {[%clk 0:02:38.9]} 12...
Nxd5 {[%clk 0:02:55.7]} 13. Bxd8 {[%clk 0:02:30.3]} 13... Rxf3 {[%clk
0:02:55.4]} 14. exd5 {[%clk 0:02:29.7]} 14... Rxf2 {[%clk 0:02:45.5]} 15. Rxf2
{[%clk 0:02:25.8]} 15... Nxd8 {[%clk 0:02:35.8]} 16. Rf1 {[%clk 0:02:18.5]}
16... Nf7 {[%clk 0:02:32.7]} 17. b4 {[%clk 0:02:18.1]} 17... Bxf2+ {[%clk
0:02:31.1]} 18. Rxf2 {[%clk 0:02:19]} 18... Kg8 {[%clk 0:02:29.6]} 19. Bd7
{[%clk 0:02:18.4]} 19... Rf8 {[%clk 0:02:26.1]} 20. Be6 {[%clk 0:02:18]} 20...
g6 {[%clk 0:02:26.5]} 21. h4 {[%clk 0:02:14.1]} 21... Kg7 {[%clk 0:02:26.5]} 22.
g4 {[%clk 0:02:14.1]} 22... Nd8 {[%clk 0:02:26.4]} 23. Rxf8 {[%clk 0:02:12.1]}
23... Kxf8 {[%clk 0:02:26.4]} 24. Bd7 {[%clk 0:02:12.8]} 24... Ke7 {[%clk
0:02:25.4]} 25. Bb5 {[%clk 0:02:12.3]} 25... c6 {[%clk 0:02:23.9]} 26. Bc4
{[%clk 0:02:10.8]} 26... b5 {[%clk 0:02:20.6]} 27. Bb3 {[%clk 0:02:09]} 27... c5
{[%clk 0:02:21]} 28. Kf2 {[%clk 0:02:06.8]} 28... Nb7 {[%clk 0:02:16]} 29. g5
{[%clk 0:02:05.7]} 29... a5 {[%clk 0:02:15.3]} 30. a3 {[%clk 0:02:05.3]} 30...
axb4 {[%clk 0:02:10.2]} 31. axb4 {[%clk 0:02:05]} 31... Kd7 {[%clk 0:01:57.7]}
32. Bd1 {[%clk 0:01:57.6]} 32... Kc7 {[%clk 0:01:56.6]} 33. Be2 {[%clk
0:01:54.3]} 33... Kb6 {[%clk 0:01:56.1]} 34. Bg4 {[%clk 0:01:54.3]} 34... Nd8
{[%clk 0:01:55.1]} 35. Ke3 {[%clk 0:01:48.3]} 35... Kc7 {[%clk 0:01:49.6]} 36.
Ke4 {[%clk 0:01:47.5]} 36... c4 {[%clk 0:01:37.6]} 37. Bh3 {[%clk 0:01:40.4]}
37... Nf7 {[%clk 0:01:36.9]} 38. Be6 {[%clk 0:01:40]} 38... Nh8 {[%clk
0:01:29.2]} 39. Bg8 {[%clk 0:01:36.6]} 39... Kd7 {[%clk 0:01:28.7]} 40. Be6+
{[%clk 0:01:28.9]} 40... Kd8 {[%clk 0:01:27.5]} 41. Ke3 {[%clk 0:01:25.9]} 41...
Ke7 {[%clk 0:01:19.5]} 42. Bc8 {[%clk 0:01:24.7]} 42... Nf7 {[%clk 0:01:19.8]}
43. Ba6 {[%clk 0:01:23.6]} 43... h6 {[%clk 0:01:19.9]} 44. Bxb5 {[%clk
0:01:16.8]} 44... hxg5 {[%clk 0:01:19.8]} 45. hxg5 {[%clk 0:01:17.7]} 45... Nxg5
{[%clk 0:01:20.1]} 46. Bxc4 {[%clk 0:01:18.6]} 46... Nf7 {[%clk 0:01:06.8]} 47.
Bd3 {[%clk 0:01:11.3]} 47... g5 {[%clk 0:01:07.1]} 48. c4 {[%clk 0:01:08.7]}
48... Kd8 {[%clk 0:01:02.7]} 49. Kf2 {[%clk 0:01:08.9]} 49... Kc7 {[%clk
0:01:01.8]} 50. Kg3 {[%clk 0:01:09.2]} 50... Nh6 {[%clk 0:00:59.1]} 51. c5
{[%clk 0:01:04.3]} 51... Ng8 {[%clk 0:00:53.2]} 52. Bc4 {[%clk 0:00:25.6]} 52...
Nf6 {[%clk 0:00:51.9]} 53. Kf3 {[%clk 0:00:15.3]} 53... g4+ {[%clk 0:00:45.6]}
54. Kg3 {[%clk 0:00:15.5]} 54... e4 {[%clk 0:00:44.8]} 55. c6 {[%clk 0:00:14.6]}
55... Kb6 {[%clk 0:00:42.3]} 56. Be2 {[%clk 0:00:14.4]} 56... e3 {[%clk
0:00:41.9]} 57. Kf4 {[%clk 0:00:12.6]} 57... Nxd5+ {[%clk 0:00:39.4]} 58. Kxg4
{[%clk 0:00:13]} 58... Nxb4 {[%clk 0:00:39.4]} 59. Kf3 {[%clk 0:00:13.4]} 59...
Nc2 {[%clk 0:00:34.5]} 60. Bd3 {[%clk 0:00:13.2]} 60... e2 {[%clk 0:00:21.1]}
61. Kxe2 {[%clk 0:00:12]} 61... Nd4+ {[%clk 0:00:20.4]} 62. Ke3 {[%clk
0:00:12.5]} 62... Nxc6 {[%clk 0:00:20.3]} 63. Be4 {[%clk 0:00:13.1]} 63... Ne5
{[%clk 0:00:18.9]} 64. Kd4 {[%clk 0:00:13.5]} 64... Nd7 {[%clk 0:00:18.3]} 65.
Kd5 {[%clk 0:00:14.4]} 65... Kc7 {[%clk 0:00:18.7]} 66. Bf5 {[%clk 0:00:14.1]}
66... Nb6+ {[%clk 0:00:18.2]} 67. Kd4 {[%clk 0:00:14.1]} 67... Kc6 {[%clk
0:00:18.3]} 68. Be4+ {[%clk 0:00:14.3]} 68... Kd7 {[%clk 0:00:18.6]} 69. Bd5
{[%clk 0:00:14.6]} 69... Ke7 {[%clk 0:00:17.9]} 70. Bg8 {[%clk 0:00:14.5]} 70...
Kf6 {[%clk 0:00:18.1]} 71. Ba2 {[%clk 0:00:15.1]} 71... Kf5 {[%clk 0:00:16]} 72.
Bb3 {[%clk 0:00:15.5]} 72... Kf4 {[%clk 0:00:15.9]} 73. Bc2 {[%clk 0:00:16.1]}
73... d5 {[%clk 0:00:14.7]} 74. Bb3 {[%clk 0:00:16.4]} 74... Kf5 {[%clk
0:00:15.2]} 75. Bxd5 {[%clk 0:00:17.3]} 1/2-1/2

[Event "*** SCC Grand Prix: Titled Tuesday Blitz"]
[Site "Chess.com"]
[Date "2020.07.07"]
[Round "3"]
[White "GoltsevDmitry2000"]
[Black "Omk124"]
[Result "1-0"]
[WhiteElo "2564"]
[BlackElo "2371"]
[TimeControl "180+1"]
[EndTime "10:30:26 PDT"]
[Termination "GoltsevDmitry2000 won by resignation"]

1. e4 {[%clk 0:03:00]} 1... g6 {[%clk 0:02:59.5]} 2. Nf3 {[%clk 0:03:00.1]} 2...
Bg7 {[%clk 0:02:59.6]} 3. Nc3 {[%clk 0:03:00.6]} 3... c6 {[%clk 0:02:59.2]} 4.
d4 {[%clk 0:03:00.5]} 4... d6 {[%clk 0:02:59.1]} 5. h3 {[%clk 0:03:00.5]} 5...
Nf6 {[%clk 0:02:58.7]} 6. Be2 {[%clk 0:02:59]} 6... O-O {[%clk 0:02:58.3]} 7.
O-O {[%clk 0:02:59.3]} 7... Nbd7 {[%clk 0:02:58.3]} 8. Bg5 {[%clk 0:02:59.1]}
8... e5 {[%clk 0:02:57.6]} 9. dxe5 {[%clk 0:02:58.8]} 9... dxe5 {[%clk
0:02:58.5]} 10. a4 {[%clk 0:02:55.4]} 10... h6 {[%clk 0:02:56.9]} 11. Be3 {[%clk
0:02:55.1]} 11... Qe7 {[%clk 0:02:56]} 12. Bc4 {[%clk 0:02:54.1]} 12... Re8
{[%clk 0:02:54.7]} 13. Qd2 {[%clk 0:02:54.1]} 13... Kh7 {[%clk 0:02:51.1]} 14.
Rfd1 {[%clk 0:02:53.8]} 14... Nf8 {[%clk 0:02:50.9]} 15. Qd6 {[%clk 0:02:51.3]}
15... Be6 {[%clk 0:02:48.2]} 16. Nxe5 {[%clk 0:02:44.5]} 16... Bxc4 {[%clk
0:02:42.7]} 17. Nxc4 {[%clk 0:02:44.2]} 17... Nxe4 {[%clk 0:02:38.7]} 18. Qxe7
{[%clk 0:02:28]} 18... Rxe7 {[%clk 0:02:33.8]} 19. Nxe4 {[%clk 0:02:27.8]} 19...
Rxe4 {[%clk 0:02:34.7]} 20. Nd6 {[%clk 0:02:28]} 20... Re7 {[%clk 0:02:33.3]}
21. c3 {[%clk 0:02:27.6]} 21... Ne6 {[%clk 0:02:31.9]} 22. Rd3 {[%clk
0:02:25.2]} 22... Rd7 {[%clk 0:02:30.7]} 23. Rad1 {[%clk 0:02:24.8]} 23... Rad8
{[%clk 0:02:30.4]} 24. Bxa7 {[%clk 0:02:20.4]} 24... Be5 {[%clk 0:02:27.3]} 25.
Bb6 {[%clk 0:02:20]} 25... Ra8 {[%clk 0:01:57.6]} 26. a5 {[%clk 0:02:17.7]}
26... Nf4 {[%clk 0:01:57.1]} 27. R3d2 {[%clk 0:02:17.4]} 27... Nd5 {[%clk
0:01:47.8]} 28. Nc4 {[%clk 0:02:08.4]} 28... Bf4 {[%clk 0:01:37.2]} 29. Rd3
{[%clk 0:02:04.7]} 29... Re8 {[%clk 0:01:34.7]} 30. g3 {[%clk 0:02:04.5]} 30...
Bb8 {[%clk 0:01:31]} 31. Ne3 {[%clk 0:02:00.4]} 31... Nxe3 {[%clk 0:01:12.6]}
32. Rxd7 {[%clk 0:01:43.6]} 32... Nxd1 {[%clk 0:01:11.3]} 33. Rxd1 {[%clk
0:01:44.5]} 33... Re7 {[%clk 0:01:03.2]} 34. Rd8 {[%clk 0:01:41.2]} 34... Bc7
{[%clk 0:01:00.1]} 35. Bxc7 {[%clk 0:01:40.4]} 35... Rxc7 {[%clk 0:01:01]} 36.
b4 {[%clk 0:01:40.4]} 36... Re7 {[%clk 0:01:00.2]} 37. Rb8 {[%clk 0:01:39.9]}
37... Kg7 {[%clk 0:00:57.6]} 38. Kf1 {[%clk 0:01:39.9]} 38... Kf6 {[%clk
0:00:57.4]} 39. c4 {[%clk 0:01:26.1]} 39... Ke5 {[%clk 0:00:56.7]} 40. b5 {[%clk
0:01:20.7]} 40... Kd4 {[%clk 0:00:47.8]} 41. b6 {[%clk 0:01:01.3]} 41... Kxc4
{[%clk 0:00:46.7]} 42. Rc8 {[%clk 0:01:01.8]} 42... Re5 {[%clk 0:00:42.8]} 43.
Rc7 {[%clk 0:00:59.8]} 43... Rxa5 {[%clk 0:00:42.2]} 44. Rxf7 {[%clk 0:00:45.8]}
44... Rb5 {[%clk 0:00:41.7]} 45. Rxb7 {[%clk 0:00:43.9]} 45... c5 {[%clk
0:00:41.5]} 46. Rb8 {[%clk 0:00:41.6]} 46... Kc3 {[%clk 0:00:40.8]} 47. b7
{[%clk 0:00:41.5]} 47... c4 {[%clk 0:00:40.6]} 48. Kg2 {[%clk 0:00:42]} 48...
Kb3 {[%clk 0:00:38.2]} 49. Kf3 {[%clk 0:00:29.6]} 49... c3 {[%clk 0:00:38]} 50.
Ke2 {[%clk 0:00:28.8]} 50... c2 {[%clk 0:00:37.2]} 51. Kd2 {[%clk 0:00:29.2]}
51... Kb2 {[%clk 0:00:37]} 52. Rc8 {[%clk 0:00:28.6]} 52... Rd5+ {[%clk
0:00:36.2]} 53. Ke2 {[%clk 0:00:28.6]} 53... Rb5 {[%clk 0:00:34.4]} 54. Kd2
{[%clk 0:00:28.9]} 54... Rd5+ {[%clk 0:00:30.9]} 55. Ke2 {[%clk 0:00:21.2]}
55... Re5+ {[%clk 0:00:23.8]} 56. Kd3 {[%clk 0:00:17.8]} 56... Rd5+ {[%clk
0:00:23.3]} 57. Ke4 {[%clk 0:00:17.8]} 57... Rb5 {[%clk 0:00:19.5]} 58. b8=Q
{[%clk 0:00:17.9]} 58... Rxb8 {[%clk 0:00:18.3]} 59. Rxb8+ {[%clk 0:00:18.8]}
59... Kc3 {[%clk 0:00:19.2]} 60. Rc8+ {[%clk 0:00:19]} 60... Kd2 {[%clk
0:00:20.1]} 61. f4 {[%clk 0:00:18.5]} 61... c1=Q {[%clk 0:00:18.5]} 62. Rxc1
{[%clk 0:00:18.6]} 62... Kxc1 {[%clk 0:00:19.4]} 63. g4 {[%clk 0:00:19.3]} 63...
Kd2 {[%clk 0:00:20.3]} 64. f5 {[%clk 0:00:20.2]} 64... gxf5+ {[%clk 0:00:18.2]}
65. gxf5 {[%clk 0:00:21.1]} 1-0

[Event "*** SCC Grand Prix: Titled Tuesday Blitz"]
[Site "Chess.com"]
[Date "2020.07.07"]
[Round "3"]
[White "vovachesss"]
[Black "Raja3401"]
[Result "1/2-1/2"]
[WhiteElo "2558"]
[BlackElo "2782"]
[TimeControl "180+1"]
[EndTime "10:30:37 PDT"]
[Termination "Game drawn - insufficient material"]

1. e4 {[%clk 0:03:00.9]} 1... c5 {[%clk 0:02:59.1]} 2. d4 {[%clk 0:03:00.6]}
2... cxd4 {[%clk 0:02:57.6]} 3. c3 {[%clk 0:03:01.4]} 3... Nf6 {[%clk
0:02:57.7]} 4. e5 {[%clk 0:03:01.6]} 4... Nd5 {[%clk 0:02:58.2]} 5. Nf3 {[%clk
0:03:01.9]} 5... Nc6 {[%clk 0:02:58.1]} 6. Bc4 {[%clk 0:03:02.4]} 6... Nb6
{[%clk 0:02:56.2]} 7. Bb3 {[%clk 0:03:02.9]} 7... d5 {[%clk 0:02:56.5]} 8. exd6
{[%clk 0:03:01.3]} 8... Qxd6 {[%clk 0:02:56.8]} 9. O-O {[%clk 0:03:00.5]} 9...
Be6 {[%clk 0:02:52]} 10. Na3 {[%clk 0:03:00.9]} 10... Bxb3 {[%clk 0:02:44.7]}
11. axb3 {[%clk 0:02:59.5]} 11... g6 {[%clk 0:02:42.7]} 12. Nb5 {[%clk
0:02:58.7]} 12... Qd7 {[%clk 0:02:43]} 13. Bf4 {[%clk 0:02:56.4]} 13... Nd5
{[%clk 0:02:36.7]} 14. Bg3 {[%clk 0:02:49.1]} 14... Rc8 {[%clk 0:02:13.2]} 15.
Re1 {[%clk 0:02:48.3]} 15... e6 {[%clk 0:02:01.3]} 16. Nfxd4 {[%clk 0:02:19.2]}
16... Be7 {[%clk 0:01:47.8]} 17. Nxc6 {[%clk 0:01:54.2]} 17... Rxc6 {[%clk
0:01:46.4]} 18. Nxa7 {[%clk 0:01:39.5]} 18... Ra6 {[%clk 0:01:44.3]} 19. Qd4
{[%clk 0:01:11.7]} 19... O-O {[%clk 0:01:17.4]} 20. Rxa6 {[%clk 0:00:56.9]}
20... bxa6 {[%clk 0:01:17.5]} 21. c4 {[%clk 0:00:57.6]} 21... Bf6 {[%clk
0:01:03.6]} 22. Be5 {[%clk 0:00:47.6]} 22... Bxe5 {[%clk 0:01:03]} 23. Rxe5
{[%clk 0:00:44.9]} 23... Nf6 {[%clk 0:01:02.9]} 24. Qxd7 {[%clk 0:00:40.7]}
24... Nxd7 {[%clk 0:01:03.8]} 25. Ra5 {[%clk 0:00:38.9]} 25... Rb8 {[%clk
0:01:02.9]} 26. Ra3 {[%clk 0:00:31.1]} 26... Nc5 {[%clk 0:00:57.6]} 27. Nc6
{[%clk 0:00:30.4]} 27... Rb6 {[%clk 0:00:45.8]} 28. Na5 {[%clk 0:00:17.7]} 28...
Nd3 {[%clk 0:00:46.1]} 29. g3 {[%clk 0:00:16.1]} 29... Kf8 {[%clk 0:00:42.7]}
30. b4 {[%clk 0:00:14.7]} 30... Ne5 {[%clk 0:00:28.9]} 31. Rb3 {[%clk
0:00:11.3]} 31... Ke7 {[%clk 0:00:28.3]} 32. f4 {[%clk 0:00:10.4]} 32... Nd7
{[%clk 0:00:28.6]} 33. Kf2 {[%clk 0:00:10.3]} 33... e5 {[%clk 0:00:26.9]} 34.
Ke3 {[%clk 0:00:10]} 34... exf4+ {[%clk 0:00:26.9]} 35. gxf4 {[%clk 0:00:10.9]}
35... Re6+ {[%clk 0:00:25.8]} 36. Kd4 {[%clk 0:00:10.4]} 36... Nf6 {[%clk
0:00:24.9]} 37. Re3 {[%clk 0:00:09.5]} 37... Rxe3 {[%clk 0:00:22.3]} 38. Kxe3
{[%clk 0:00:10.4]} 38... Kd6 {[%clk 0:00:23.2]} 39. Kd4 {[%clk 0:00:09.8]} 39...
Nh5 {[%clk 0:00:22.4]} 40. c5+ {[%clk 0:00:10]} 40... Kc7 {[%clk 0:00:22.7]} 41.
Ke5 {[%clk 0:00:09.8]} 41... f6+ {[%clk 0:00:23.2]} 42. Ke4 {[%clk 0:00:09.7]}
42... Ng7 {[%clk 0:00:22.7]} 43. Nc4 {[%clk 0:00:08.4]} 43... Kc6 {[%clk
0:00:15.4]} 44. Nd6 {[%clk 0:00:07.8]} 44... a5 {[%clk 0:00:14.4]} 45. bxa5
{[%clk 0:00:06.8]} 45... Kxc5 {[%clk 0:00:14.4]} 46. Nc8 {[%clk 0:00:02.7]}
46... Kb5 {[%clk 0:00:13.9]} 47. b4 {[%clk 0:00:02.7]} 47... Ne6 {[%clk
0:00:12.4]} 48. f5 {[%clk 0:00:03]} 48... Ng5+ {[%clk 0:00:11.8]} 49. Kf4 {[%clk
0:00:03.7]} 49... Nf7 {[%clk 0:00:09.6]} 50. fxg6 {[%clk 0:00:03.5]} 50... hxg6
{[%clk 0:00:09.8]} 51. Ke4 {[%clk 0:00:04.4]} 51... Nd8 {[%clk 0:00:09.8]} 52.
Nd6+ {[%clk 0:00:04.5]} 52... Kxb4 {[%clk 0:00:09.5]} 53. a6 {[%clk 0:00:05.2]}
53... Nc6 {[%clk 0:00:09.9]} 54. Ne8 {[%clk 0:00:05.7]} 54... f5+ {[%clk
0:00:09.6]} 55. Kf4 {[%clk 0:00:06.3]} 55... Kb5 {[%clk 0:00:09.4]} 56. Nc7+
{[%clk 0:00:07]} 56... Kb6 {[%clk 0:00:09.5]} 57. Ne6 {[%clk 0:00:06.6]} 57...
Kxa6 {[%clk 0:00:09.8]} 58. Nf8 {[%clk 0:00:06.9]} 58... Ne7 {[%clk 0:00:09.7]}
59. Nxg6 {[%clk 0:00:06.1]} 59... Nxg6+ {[%clk 0:00:10.6]} 60. Kxf5 {[%clk
0:00:07]} 60... Nh4+ {[%clk 0:00:10.9]} 61. Kg4 {[%clk 0:00:07.2]} 61... Ng6
{[%clk 0:00:11.3]} 62. Kg5 {[%clk 0:00:07.8]} 62... Ne5 {[%clk 0:00:11.8]} 63.
Kf4 {[%clk 0:00:07.4]} 63... Nf7 {[%clk 0:00:11.6]} 64. h4 {[%clk 0:00:07.4]}
64... Kb6 {[%clk 0:00:12.2]} 65. Kf5 {[%clk 0:00:08]} 65... Kc6 {[%clk
0:00:12.8]} 66. Kf6 {[%clk 0:00:08.5]} 66... Nh6 {[%clk 0:00:12.9]} 67. Kg5
{[%clk 0:00:08.3]} 67... Nf7+ {[%clk 0:00:13.1]} 68. Kg6 {[%clk 0:00:08.9]}
68... Ne5+ {[%clk 0:00:13.3]} 69. Kf5 {[%clk 0:00:09.2]} 69... Nf7 {[%clk
0:00:13.9]} 70. h5 {[%clk 0:00:08.8]} 70... Kd7 {[%clk 0:00:13.6]} 71. Kf6
{[%clk 0:00:08.3]} 71... Ke8 {[%clk 0:00:13.6]} 72. Kg7 {[%clk 0:00:08.8]} 72...
Ke7 {[%clk 0:00:13.8]} 73. h6 {[%clk 0:00:09]} 73... Nxh6 {[%clk 0:00:13.6]}
1/2-1/2